bitfinex-derivatives/quotes_SOLF0:USTF0_20251228
["timestamp","ask_amount","ask_price","bid_price","bid_amount"]
[1766937206937,3.37059668,124.58,124.52,3.35]
[1766937207129,7.2299,124.57,124.52,3.35]
[1766937211134,7.2307,124.56,124.52,3.35]
[1766937211439,0.05673567,124.55,124.52,3.35]
[1766937215543,10.59793567,124.55,124.5,3.35]
[1766937215843,0.05567041,124.54,124.46,207.4212]
[1766937216035,0.00041738,124.51,124.49,7.2344]
[1766937216335,7.2302,124.57,124.49,7.2344]
[1766937216336,10.5402,124.57,124.49,7.2344]
[1766937217241,0.05216602,124.54,124.52,0.05058569]
[1766937222243,3.36216602,124.54,124.49,7.2344]
[1766937222432,3.36216602,124.54,124.44,3.35]
[1766937222433,3.31,124.52,124.44,3.35]
[1766937222739,98.17,124.55,124.45,3.35]
[1766937223039,98.17,124.55,124.48,3.35]
[1766937223040,3.31,124.55,124.48,3.35]
[1766937223233,0.05303139,124.53,124.48,3.35]
[1766937232748,0.05303139,124.53,124.48,10.585]
[1766937233050,0.00303139,124.53,124.49,3.39]
[1766937233240,3.27,124.56,124.5,3.39]
[1766937233951,0.05278919,124.54,124.52,0.0536065]
[1766937239750,0.05278919,124.54,124.5,3.39]
[1766937244760,0.00278919,124.54,124.5,3.39]
[1766937245656,0.00278919,124.54,124.52,3.48]
[1766937245857,0.00278919,124.54,124.52,3.5353241]
[1766937246459,102.1093,124.58,124.52,3.5353241]
[1766937246661,94.88,124.58,124.53,3.48]
[1766937247361,0.06083185,124.57,124.53,3.48]
[1766937257465,0.00083185,124.57,124.53,10.7121]
[1766937257669,0.00083185,124.57,124.54,3.33]
[1766937259070,0.00083185,124.57,124.55,3.33]
[1766937259265,0.00083185,124.57,124.55,3.38652445]
[1766937264776,0.00083185,124.57,124.55,0.05652445]
[1766937265975,3.24083185,124.57,124.51,3.33]
[1766937266568,3.24083185,124.57,124.48,3.33]
[1766937266781,3.24,124.55,124.48,3.33]
[1766937266969,0.05143414,124.53,124.5,0.05584603]
[1766937268780,0.00143414,124.53,124.5,3.38584603]
[1766937272580,98.1,124.57,124.5,3.38584603]
[1766937272774,3.24,124.59,124.5,3.38584603]
[1766937272974,3.24,124.59,124.5,3.33]
[1766937273278,9.41930069,124.59,124.5,3.33]
[1766937273485,3.24,124.59,124.5,3.33]
[1766937273784,0.05302011,124.56,124.53,3.39045078]
[1766937289198,7.231,124.55,124.51,3.28]
[1766937290290,7.231,124.55,124.52,0.0508999]
[1766937290994,10.531,124.55,124.49,3.28]
[1766937291703,7.2317,124.54,124.49,3.28]
[1766937292092,0.05348932,124.53,124.49,3.28]
[1766937292396,7.28578932,124.53,124.49,3.28]
[1766937292594,3.35348932,124.53,124.45,3.28]
[1766937292900,0.05867008,124.5,124.45,3.28]
[1766937293397,0.05867008,124.5,124.45,10.5167]
[1766937293601,0.05867008,124.5,124.46,3.28]
[1766937300192,3.49867008,124.5,124.44,10.7373]
[1766937300496,3.44,124.5,124.45,3.5]
[1766937301006,3.44,124.5,124.43,3.5]
[1766937301603,113.42598186,124.49,124.38,3.5]
[1766937301801,3.44,124.48,124.38,3.5]
[1766937302303,3.44,124.5,124.41,3.5]
[1766937302598,3.44,124.5,124.44,0.0527631]
[1766937302801,0.050706,124.47,124.44,0.0527631]
[1766937303401,3.44,124.5,124.44,0.0527631]
[1766937304501,0.05977822,124.48,124.44,0.0527631]
[1766937304703,3.49977822,124.48,124.44,0.0527631]
[1766937305705,0.05977822,124.48,124.44,3.5527631]
[1766937307211,3.49977822,124.48,124.44,0.0527631]
[1766937308505,10.73497822,124.48,124.44,0.0527631]
[1766937308704,3.44,124.47,124.44,0.0027631]
[1766937310702,10.6758,124.47,124.44,0.0027631]
[1766937310906,105.5958,124.47,124.44,0.0027631]
[1766937313311,94.92,124.47,124.44,0.0027631]
[1766937313518,0.05977822,124.48,124.44,0.0027631]
[1766937322519,3.54977822,124.48,124.44,0.0027631]
[1766937324219,0.05977822,124.48,124.44,0.0027631]
[1766937324523,449.9098,124.56,124.47,3.39]
[1766937324524,98.43,124.53,124.47,3.39]
[1766937325427,0.05129848,124.51,124.49,0.05162502]
[1766937329533,0.00129848,124.51,124.49,0.05162502]
[1766937329738,0.00129848,124.51,124.49,3.44162502]
[1766937332727,3.49,124.56,124.49,10.67602502]
[1766937333030,98.41,124.56,124.49,10.67602502]
[1766937333425,3.49,124.55,124.49,3.44162502]
[1766937333627,0.05538429,124.53,124.49,3.44162502]
[1766937340142,0.05538429,124.53,124.49,10.67612502]
[1766937344951,0.05538429,124.53,124.5,3.39]
[1766937347650,0.05538429,124.53,124.5,10.6239]
[1766937351558,105.6407,124.56,124.51,3.22]
[1766937352553,0.05215552,124.55,124.51,3.22]
[1766937352757,0.05215552,124.55,124.52,0.05259912]
[1766937359466,0.05215552,124.55,124.52,3.27259912]
[1766937361854,0.05215552,124.55,124.52,0.05259912]
[1766937369159,3.27215552,124.55,124.52,0.05259912]
[1766937369362,3.27215552,124.55,124.49,3.22]
[1766937370271,3.27215552,124.55,124.51,0.05572447]
[1766937370669,10.50335552,124.55,124.51,0.05572447]
[1766937381586,3.18,124.54,124.51,0.05572447]
[1766937385387,9.35043454,124.54,124.51,0.05572447]
[1766937386987,16.58223454,124.54,124.49,3.22]
[1766937387188,10.4118,124.54,124.49,3.22]
[1766937387888,10.4118,124.54,124.5,0.0604601]
[1766937404709,3.18,124.54,124.5,0.0604601]
[1766937413410,9.33273841,124.54,124.5,0.0604601]
[1766937416006,3.48,124.53,124.5,0.0604601]
[1766937419919,3.48,124.53,124.5,0.0004601]
[1766937431533,3.48,124.52,124.5,0.0004601]
[1766937431832,3.53671826,124.52,124.5,0.0004601]
[1766937442854,0.05671826,124.52,124.5,0.0004601]
[1766937451858,3.40671826,124.52,124.5,0.0004601]
[1766937457066,0.05671826,124.52,124.5,0.0004601]
[1766937459164,3.35,124.54,124.5,3.2704601]
[1766937460269,0.06160875,124.53,124.5,3.2704601]
[1766937468678,3.39160875,124.53,124.5,0.0004601]
[1766937470674,10.62400875,124.53,124.5,0.0004601]
[1766937473579,3.47,124.52,124.5,0.0004601]
[1766937473784,3.47,124.51,124.5,0.0004601]
[1766937476183,3.53160875,124.53,124.5,0.0004601]
[1766937476383,3.47,124.52,124.5,0.0004601]
[1766937482190,10.7028,124.52,124.5,0.0004601]
[1766937492310,7.2333,124.51,124.5,0.0004601]
[1766937508322,13.39487848,124.51,124.5,0.0004601]
[1766937513630,7.2363,124.46,124.4,3.25]
[1766937513831,10.5663,124.46,124.4,3.25]
[1766937514526,0.06075336,124.44,124.42,0.05245549]
[1766937518032,3.39075336,124.44,124.42,0.05245549]
[1766937518231,3.39075336,124.44,124.42,0.00245549]
[1766937520134,10.62825336,124.44,124.42,0.00245549]
[1766937520633,3.33,124.43,124.42,0.00245549]
[1766937521133,0.06075336,124.44,124.42,0.00245549]
[1766937524043,98.27,124.47,124.42,0.00245549]
[1766937524242,98.27,124.47,124.42,3.25245549]
[1766937524435,3.33,124.49,124.42,3.25245549]
[1766937524634,98.27,124.49,124.42,3.25]
[1766937525035,0.05520245,124.47,124.44,0.06160617]
[1766937525934,3.48520245,124.47,124.44,0.06160617]
[1766937526844,3.48520245,124.47,124.44,0.00160617]
[1766937528638,3.43,124.46,124.44,0.00160617]
[1766937532144,10.6663,124.46,124.44,0.00160617]
[1766937533546,3.47,124.45,124.44,0.00160617]
[1766937537861,10.7068,124.45,124.44,0.00160617]
[1766937547169,3.47,124.45,124.44,0.00160617]
[1766937547867,102.1964,124.46,124.44,0.00160617]
[1766937548372,105.6664,124.46,124.44,0.00160617]
[1766937549476,3.47,124.45,124.44,0.00160617]
[1766937549671,10.7068,124.45,124.44,0.00160617]
[1766937550668,3.47,124.45,124.44,0.00160617]
[1766937581510,3.36,124.46,124.44,0.00160617]
[1766937581715,98.32,124.46,124.44,0.00160617]
[1766937591219,3.44,124.45,124.44,0.00160617]
[1766937591420,9.62405418,124.45,124.44,0.00160617]
[1766937592606,3.44,124.45,124.44,0.00160617]
[1766937593118,94.96,124.46,124.44,0.00160617]
[1766937593712,98.4,124.46,124.44,0.00160617]
[1766937597221,94.96,124.46,124.44,0.00160617]
[1766937597414,0.05520245,124.47,124.44,0.00160617]
[1766937597809,3.49520245,124.47,124.44,0.00160617]
[1766937603029,0.05520245,124.47,124.44,0.00160617]
[1766937603522,9.39556874,188.17,124.44,0.00160617]
[1766937603727,3.28,124.55,124.45,3.22]
[1766937603925,3.28,124.54,124.45,3.22]
[1766937604226,3.28,124.52,124.45,3.22]
[1766937604523,3.28,124.51,124.45,3.22]
[1766937604721,3.33753462,124.5,124.47,0.06144711]
[1766937612924,0.05753462,124.5,124.47,0.06144711]
[1766937616434,3.32753462,124.5,124.47,0.06144711]
[1766937617036,3.32753462,124.5,124.47,0.00144711]
[1766937627849,98.24753462,124.5,124.47,0.00144711]
[1766937630956,0.05753462,124.5,124.47,0.00144711]
[1766937645364,94.92,124.52,124.47,3.44144711]
[1766937645569,94.92,124.55,124.47,3.44144711]
[1766937645771,6.23106712,124.54,124.47,3.44]
[1766937646484,0.05174571,124.52,124.49,0.05739076]
[1766937648681,98.33,124.55,124.49,3.49739076]
[1766937649587,98.33,124.55,124.51,7.2333]
[1766937649885,3.46199814,124.53,124.52,0.00153641]
[1766937650587,3.46199814,124.53,124.47,10.6752]
[1766937650986,3.46199814,124.53,124.44,112.5778]
[1766937651189,94.92,124.55,124.42,112.6008]
[1766937651190,3.41,124.52,124.45,10.6763]
[1766937651692,0.06111056,124.5,124.47,0.0510937]
[1766937651895,3.29111056,124.5,124.47,0.0510937]
[1766937658598,0.06111056,124.5,124.47,0.0510937]
[1766937659600,3.23,124.52,124.47,7.2866937]
[1766937659901,3.23,124.52,124.47,3.2810937]
[1766937660292,6.23360239,124.56,124.47,3.2810937]
[1766937660293,3.23,124.55,124.47,3.2810937]
[1766937660499,3.23,124.55,124.47,3.23]
[1766937660700,0.05275983,124.52,124.5,0.05596479]
[1766937660898,3.23,124.54,124.5,0.05596479]
[1766937661096,9.46360239,124.56,124.5,0.05596479]
[1766937661400,3.23,124.55,124.5,0.05596479]
[1766937661902,0.06106892,124.54,124.5,0.05596479]
[1766937662604,0.06106892,124.54,124.5,7.28966479]
[1766937665206,0.06106892,124.54,124.5,10.51966479]
[1766937665905,0.06106892,124.54,124.51,3.23]
[1766937667005,0.06106892,124.54,124.5,7.28966479]
[1766937667705,0.06106892,124.54,124.5,0.05596479]
[1766937669005,0.06106892,124.54,124.5,3.28596479]
[1766937670903,6.23360239,124.56,124.51,3.23]
[1766937671095,105.3804,124.57,124.51,3.23]
[1766937672010,0.055636,124.55,124.53,0.05697161]
[1766937672610,3.285636,124.55,124.48,10.4647]
[1766937672904,3.285636,124.55,124.46,3.23]
[1766937673097,3.23,124.52,124.46,3.23]
[1766937673809,0.05744078,124.5,124.48,0.05723931]
[1766937686118,3.37,124.54,124.49,3.48]
[1766937687018,0.05377959,124.53,124.49,3.48]
[1766937687618,0.05377959,124.53,124.49,10.7145]
[1766937688216,0.00377959,124.53,124.5,3.48]
[1766937694019,3.37377959,124.53,124.48,3.53723931]
[1766937695626,3.37377959,124.53,124.48,0.05723931]
[1766937696628,10.60607959,124.53,124.48,0.05723931]
[1766937697829,3.37,124.52,124.48,0.05723931]
[1766937699624,3.37,124.51,124.45,94.88]
[1766937700731,0.05567939,124.49,124.47,0.06062033]
[1766937704031,3.37,124.51,124.47,0.06062033]
[1766937705033,0.05836406,124.5,124.47,0.06062033]
[1766937710035,10.6722,124.53,124.47,3.42062033]
[1766937711135,0.05714647,124.51,124.47,3.42062033]
[1766937711434,3.44,124.53,124.48,3.36]
[1766937712430,0.05966104,124.52,124.48,3.36]
[1766937725541,3.31966104,124.52,124.47,0.06062033]
[1766937726545,10.55246104,124.52,124.47,0.06062033]
[1766937736962,10.5835,124.51,124.47,0.06062033]
[1766937737461,3.35,124.5,124.47,0.06062033]
[1766937740266,3.40966104,124.52,124.47,0.06062033]
[1766937740470,3.35,124.51,124.47,0.06062033]
[1766937744372,0.05966104,124.52,124.47,3.30062033]
[1766937745670,0.05966104,124.52,124.47,10.53632033]
[1766937749273,3.40966104,124.52,124.47,3.30062033]
[1766937749868,10.64256104,124.52,124.47,0.06062033]
[1766937750074,3.35,124.51,124.47,0.06062033]
[1766937755778,3.35,124.51,124.47,3.30062033]
[1766937758079,0.05966104,124.52,124.47,3.30062033]
[1766937758580,3.40966104,124.52,124.47,3.30062033]
[1766937760174,9.92519442,124.52,124.47,3.30062033]
[1766937762886,3.35,124.51,124.47,0.06062033]
[1766937769492,6.57620592,124.52,124.48,3.3]
[1766937769690,0.05966104,124.52,124.48,3.3]
[1766937770092,0.05966104,124.52,124.48,10.5351]
[1766937773298,3.40966104,124.52,124.48,3.3]
[1766937780510,0.05966104,124.52,124.48,10.535]
[1766937780705,0.05966104,124.52,124.49,3.38]
[1766937793022,0.05966104,124.52,124.48,7.235]
[1766937793319,0.05966104,124.52,124.48,10.615]
[1766937794623,0.05966104,124.52,124.48,3.38]
[1766937802630,10.4411,124.55,124.49,3.27]
[1766937802929,6.41834842,124.54,124.49,3.27]
[1766937803633,6.41834842,124.54,124.5,3.27]
[1766937803833,0.05871879,124.53,124.5,3.32281363]
[1766937805837,6.41834842,124.54,124.5,3.32281363]
[1766937806133,6.41834842,124.56,124.5,3.32281363]
[1766937806337,6.41834842,124.56,124.51,3.27]
[1766937806934,0.05232497,124.55,124.51,3.27]
[1766937820746,0.00232497,124.55,124.51,3.27]
[1766937821143,2.10276613,124.57,124.52,3.27]
[1766937822242,6.40705725,124.59,124.53,3.3315092]
[1766937822442,7.2287,124.6,124.53,3.3315092]
[1766937822642,3.21,124.61,124.54,3.27]
[1766937823251,0.05204179,124.59,124.56,3.32213222]
[1766937825353,0.05204179,124.59,124.56,0.05213222]
[1766937826555,7.28084179,124.59,124.56,0.05213222]
[1766937842069,0.05204179,124.59,124.56,0.05213222]
[1766937842263,0.05204179,124.59,124.56,3.49213222]
[1766937842463,0.00204179,124.59,124.56,3.49213222]
[1766937845374,3.20204179,124.59,124.56,0.05213222]
[1766937846762,10.43084179,124.59,124.54,3.44]
[1766937847672,10.43084179,124.59,124.55,0.06023061]
[1766937864285,7.23084179,124.59,124.55,0.06023061]
[1766937864484,3.5,124.58,124.55,0.06023061]
[1766937867287,0.00204179,124.59,124.55,3.49023061]
[1766937868090,0.00204179,124.59,124.56,3.43]
[1766937872695,0.00204179,124.59,124.55,0.06023061]
[1766937873998,0.00204179,124.59,124.55,3.49023061]
[1766937889413,0.00204179,124.59,124.56,3.31]
[1766937890708,0.00204179,124.59,124.57,3.31]
[1766937891512,0.00204179,124.59,124.58,3.52]
[1766937894609,0.00204179,124.59,124.56,3.52]
[1766937894807,0.00204179,124.59,124.57,94.82]
[1766937900214,0.00204179,124.59,124.57,98.34]
[1766937915123,0.00204179,124.59,124.55,98.36023061]
[1766937921627,0.00204179,124.59,124.55,3.54023061]
[1766937921828,10.63084179,124.59,124.55,3.54023061]
[1766937922228,10.63084179,124.59,124.55,0.06023061]
[1766937923826,3.4,124.57,124.52,98.3]
[1766937924731,0.05250323,124.56,124.53,3.54086229]
[1766937928228,0.00250323,124.56,124.53,3.54086229]
[1766937928428,0.00250323,124.56,124.54,3.48]
[1766937941455,0.00250323,124.56,124.55,98.32]
[1766937943162,0.00250323,124.56,124.55,105.551]
[1766937943647,0.00250323,124.56,124.55,10.711]
[1766937943850,0.00250323,124.56,124.55,105.551]
[1766937950865,0.00250323,124.56,124.55,10.711]
[1766937951059,0.00250323,124.56,124.55,105.531]
[1766937961470,0.00250323,124.56,124.55,10.711]
[1766937961770,0.00250323,124.56,124.55,105.531]
[1766937969280,0.00250323,124.56,124.55,10.711]
[1766937969486,0.00250323,124.56,124.55,105.531]
[1766937979893,0.00250323,124.56,124.55,10.711]
[1766937980093,0.00250323,124.56,124.55,105.531]
[1766937982189,0.00250323,124.56,124.55,10.711]
[1766937982393,0.00250323,124.56,124.55,105.531]
[1766937985798,0.00250323,124.56,124.55,10.711]
[1766937986096,0.00250323,124.56,124.55,105.531]
[1766937994196,3.43,124.64,124.58,10.5891]
[1766937994498,3.43,124.64,124.59,94.82]
[1766937995301,3.43,124.62,124.6,0.05421055]
[1766937995497,3.43,124.62,124.6,0.0615189]
[1766937995801,3.43,124.62,124.56,3.36]
[1766937995802,3.43,124.61,124.57,7.2295]
[1766937995999,3.43,124.61,124.58,91.29]
[1766937996298,3.43,124.61,124.56,94.82]
[1766937996703,1.6,124.6,124.52,2.66704507]
[1766937996900,0.05054929,124.57,124.53,94.82]
[1766937997904,0.05054929,124.57,124.54,0.06071075]
[1766937998297,1.6,124.56,124.54,0.00071075]
[1766938005410,8.8307,124.56,124.54,0.00071075]
[1766938010114,7.2307,124.56,124.54,0.00071075]
[1766938010914,1.6,124.55,124.54,0.00071075]
[1766938012316,7.2307,124.56,124.54,0.00071075]
[1766938012516,8.8307,124.56,124.54,0.00071075]
[1766938013120,103.6907,124.56,124.54,0.00071075]
[1766938013814,102.0907,124.56,124.54,0.00071075]
[1766938014319,1.6,124.55,124.54,0.00071075]
[1766938016418,102.0907,124.56,124.54,0.00071075]
[1766938016620,94.88,124.55,124.54,0.00071075]
[1766938018526,7.2307,124.56,124.54,0.00071075]
[1766938018825,94.88,124.55,124.54,0.00071075]
[1766938019619,0.05054929,124.57,124.54,0.00071075]
[1766938019917,94.93054929,124.57,124.54,0.00071075]
[1766938020424,102.16044929,124.57,124.54,0.00071075]
[1766938020821,94.93054929,124.57,124.54,0.00071075]
[1766938021024,0.05054929,124.57,124.54,0.00071075]
[1766938028316,7.2305,124.56,124.54,0.00071075]
[1766938031625,94.88,124.55,124.54,0.00071075]
[1766938045836,102.111,124.55,124.54,0.00071075]
[1766938050740,94.88,124.55,124.54,0.00071075]
[1766938052044,0.05054929,124.57,124.54,0.00071075]
[1766938060063,7.28054929,124.57,124.54,0.00071075]
[1766938060759,7.2305,124.56,124.54,0.00071075]
[1766938060957,0.05054929,124.57,124.54,0.00071075]
[1766938061152,12.45894328,124.57,124.54,0.00071075]
[1766938061356,0.05054929,124.57,124.54,0.00071075]
[1766938061560,12.46297599,124.57,124.54,0.00071075]
[1766938061858,6.3450337,124.57,124.54,0.00071075]
[1766938062656,7.231,124.55,124.54,0.00071075]
[1766938062855,102.111,124.55,124.54,0.00071075]
[1766938067562,114.52018474,124.55,124.54,0.00071075]
[1766938067763,116.12018474,124.55,124.54,0.00071075]
[1766938069461,7.2329,124.52,124.46,3.24]
[1766938069760,102.1129,124.52,124.46,3.24]
[1766938070455,0.06105085,124.5,124.48,0.05770203]
[1766938087581,94.9,124.55,124.48,3.48770203]
[1766938088582,1.98882419,124.59,124.5,3.43]
[1766938088880,96.88882419,124.59,124.5,3.43]
[1766938089079,104.11802419,124.59,124.51,3.43]
[1766938089582,0.0534268,124.56,124.54,0.05062953]
[1766938096987,0.0534268,124.56,124.54,0.00062953]
[1766938098095,7.2840268,124.56,124.54,0.00062953]
[1766938105512,102.1640268,124.56,124.54,0.00062953]
[1766938106209,7.231,124.55,124.54,0.00062953]
[1766938108813,94.9334268,124.56,124.54,0.00062953]
[1766938111118,0.0534268,124.56,124.54,0.00062953]
[1766938117117,0.0534268,124.56,124.54,3.48062953]
[1766938117118,0.0034268,124.56,124.54,3.48062953]
[1766938117320,94.88,124.58,124.54,3.48062953]
[1766938118318,1.98882419,124.59,124.54,3.48062953]
[1766938118518,94.88,124.61,124.54,3.48062953]
[1766938119514,0.05228726,124.59,124.54,3.48062953]
[1766938123621,0.05228726,124.59,124.55,3.48]
[1766938128719,0.00228726,124.59,124.55,3.48]
[1766938130824,0.00228726,124.59,124.54,0.00062953]
[1766938131922,7.23108726,124.59,124.54,0.00062953]
[1766938132926,7.2294,124.58,124.54,0.00062953]
[1766938153928,0.00228726,124.59,124.54,0.00062953]
[1766938155540,7.23098726,124.59,124.54,0.00062953]
[1766938158142,0.00228726,124.59,124.54,3.43062953]
[1766938162539,0.00228726,124.59,124.55,3.43]
[1766938168239,0.00228726,124.59,124.54,0.00062953]
[1766938174647,0.00228726,124.59,124.54,3.43062953]
[1766938208675,0.00228726,124.59,124.54,0.00062953]
[1766938208878,6.13508692,124.59,124.54,0.00062953]
[1766938209071,6.13279966,124.58,124.54,0.00062953]
[1766938209281,7.23098726,124.59,124.54,0.00062953]
[1766938212585,6.12634446,124.58,124.54,0.00062953]
[1766938214290,7.23098726,124.59,124.54,0.00062953]
[1766938215979,13.42999389,124.59,124.54,0.00062953]
[1766938219185,7.2293,124.58,124.54,0.00062953]
[1766938223991,7.2299,124.57,124.54,0.00062953]
[1766938231194,102.09148726,124.59,124.54,0.00062953]
[1766938231696,7.2293,124.58,124.54,0.00062953]
[1766938240002,0.00228726,124.59,124.54,0.00062953]
[1766938240301,94.86228726,124.59,124.54,0.00062953]
[1766938240902,0.00228726,124.59,124.54,3.46062953]
[1766938241302,6.13254887,124.59,124.54,3.46062953]
[1766938251915,6.13254887,124.59,124.54,0.00062953]
[1766938252115,13.36124887,124.59,124.54,0.00062953]
[1766938252316,7.23098726,124.59,124.54,0.00062953]
[1766938253212,6.14110511,124.58,124.54,0.00062953]
[1766938253923,13.37040511,124.58,124.54,0.00062953]
[1766938254108,7.2293,124.58,124.54,0.00062953]
[1766938256216,6.14073213,124.57,124.54,0.00062953]
[1766938259316,7.2293,124.58,124.54,0.00062953]
[1766938259921,6.14063367,124.57,124.54,0.00062953]
[1766938260108,7.2293,124.58,124.54,0.00062953]
[1766938260417,13.36557745,124.58,124.54,0.00062953]
[1766938261013,7.2293,124.58,124.54,0.00062953]
[1766938269324,7.2299,124.57,124.54,0.00062953]
[1766938271624,112.4848,124.55,124.47,3.49]
[1766938271820,6.13081101,124.54,124.47,3.49]
[1766938272129,94.86,124.56,124.47,3.49]
[1766938272625,0.05486116,124.53,124.5,0.05149863]
[1766938276833,0.05486116,124.53,124.5,3.27149863]
[1766938287433,94.86,124.56,124.5,3.27149863]
[1766938287928,207.3271,124.59,124.5,3.27149863]
[1766938288131,207.3271,124.59,124.5,3.22]
[1766938288330,112.4471,124.59,124.5,3.22]
[1766938288530,0.03558279,124.56,124.53,0.05584218]
[1766938292736,7.26608279,124.56,124.53,0.05584218]
[1766938294335,7.231,124.55,124.5,3.22]
[1766938295230,7.231,124.55,124.51,0.05698936]
[1766938296734,7.2317,124.54,124.51,0.05698936]
[1766938302349,102.14658279,124.56,124.51,0.05698936]
[1766938303849,94.91558279,124.56,124.51,0.05698936]
[1766938304146,0.03558279,124.56,124.51,3.27698936]
[1766938305051,0.03558279,124.56,124.51,10.51028936]
[1766938305243,0.03558279,124.56,124.52,3.38]
[1766938310748,7.26628279,124.56,124.51,0.05698936]
[1766938318055,7.26628279,124.56,124.51,3.56698936]
[1766938327461,7.231,124.55,124.51,0.05698936]
[1766938332874,0.03558279,124.56,124.51,0.05698936]
[1766938333375,6.15743847,124.56,124.51,0.05698936]
[1766938334566,13.38793847,124.56,124.51,0.05698936]
[1766938334866,7.26608279,124.56,124.51,0.05698936]
[1766938335467,0.03558279,124.56,124.51,0.05698936]
[1766938335767,6.1573513,124.56,124.51,0.05698936]
[1766938335962,12.44444668,124.56,124.51,0.05698936]
[1766938336265,6.32267817,124.56,124.51,0.05698936]
[1766938336453,0.03558279,124.56,124.51,0.05698936]
[1766938336660,6.15732904,124.56,124.51,0.05698936]
[1766938336863,12.44442442,124.56,124.51,0.05698936]
[1766938337162,6.32267817,124.56,124.51,0.05698936]
[1766938337358,0.03558279,124.56,124.51,0.05698936]
[1766938337553,6.15732203,124.56,124.51,0.05698936]
[1766938337764,12.44441741,124.56,124.51,0.05698936]
[1766938337968,6.32267817,124.56,124.51,0.05698936]
[1766938338161,0.03558279,124.56,124.51,0.05698936]
[1766938338461,6.15724546,124.56,124.51,0.05698936]
[1766938338655,12.44434084,124.56,124.51,0.05698936]
[1766938338867,6.32267817,124.56,124.51,0.05698936]
[1766938339165,0.03558279,124.56,124.51,0.05698936]
[1766938339365,6.157175,124.56,124.51,0.05698936]
[1766938339665,12.44427038,124.56,124.51,0.05698936]
[1766938339866,6.32267817,124.56,124.51,0.05698936]
[1766938340066,0.03558279,124.56,124.51,0.05698936]
[1766938340272,6.15721058,124.56,124.51,0.05698936]
[1766938340462,12.44430596,124.56,124.51,0.05698936]
[1766938340662,6.32267817,124.56,124.51,0.05698936]
[1766938340862,0.03558279,124.56,124.51,0.05698936]
[1766938341066,6.15713008,124.56,124.51,0.05698936]
[1766938341265,12.44422546,124.56,124.51,0.05698936]
[1766938341467,6.32267817,124.56,124.51,0.05698936]
[1766938341662,0.03558279,124.56,124.51,0.05698936]
[1766938341862,6.15708834,124.56,124.51,0.05698936]
[1766938342068,12.44418372,124.56,124.51,0.05698936]
[1766938342372,6.32267817,124.56,124.51,0.05698936]
[1766938342563,0.03558279,124.56,124.51,0.05698936]
[1766938342763,6.15717091,124.56,124.51,0.05698936]
[1766938342964,12.44426629,124.56,124.51,0.05698936]
[1766938343163,6.32267817,124.56,124.51,0.05698936]
[1766938343463,0.03558279,124.56,124.51,0.05698936]
[1766938343665,6.15747057,124.56,124.51,0.05698936]
[1766938343957,12.44456595,124.56,124.51,0.05698936]
[1766938344157,6.32267817,124.56,124.51,0.05698936]
[1766938344373,0.03558279,124.56,124.51,0.05698936]
[1766938344671,6.15780123,124.56,124.51,0.05698936]
[1766938344874,12.44489661,124.56,124.51,0.05698936]
[1766938345064,6.32267817,124.56,124.51,0.05698936]
[1766938345266,0.03558279,124.56,124.51,0.05698936]
[1766938345765,6.15815113,124.56,124.51,0.05698936]
[1766938346576,12.44619328,124.56,124.51,0.05698936]
[1766938346876,0.03558279,124.56,124.51,0.05698936]
[1766938347270,19.67662078,124.56,124.51,0.05698936]
[1766938347471,7.26608279,124.56,124.51,0.05698936]
[1766938351280,7.2313,124.55,124.51,0.05698936]
[1766938352177,7.2313,124.55,124.48,3.18]
[1766938352374,7.2322,124.53,124.48,3.18]
[1766938353278,0.05822261,124.52,124.49,0.06146368]
[1766938359379,7.29112261,124.52,124.49,0.06146368]
[1766938359579,7.29112261,124.52,124.46,3.18]
[1766938360683,7.29112261,124.52,124.48,0.06108327]
[1766938365686,7.2334,124.51,124.44,3.37]
[1766938366787,0.05135035,124.49,124.46,0.06016374]
[1766938367288,94.9,124.52,124.46,3.43016374]
[1766938368188,0.0559669,124.5,124.46,3.43016374]
[1766938378307,0.0559669,124.5,124.46,10.66636374]
[1766938378501,0.0559669,124.5,124.46,3.43016374]
[1766938388516,0.0559669,124.5,124.46,0.06016374]
[1766938388814,112.5402,124.49,124.41,3.51]
[1766938389013,219.85676006,124.48,124.41,3.51]